bitfinex-derivatives/quotes_BTCF0:USTF0_20241117
["timestamp","ask_amount","ask_price","bid_price","bid_amount"]
[1731802406375,0.3608,90707.0,90706.0,0.20776759]
[1731802406581,0.3608,90707.0,90706.0,0.40519465]
[1731802406787,0.1321092,90709.0,90706.0,0.15267559]
[1731802406970,0.1321092,90711.0,90710.0,0.05509]
[1731802407169,0.1321092,90712.0,90710.0,0.62365789]
[1731802407469,0.1321092,90713.0,90712.0,0.055089]
[1731802407774,0.1321092,90717.0,90712.0,0.09725566]
[1731802407970,0.13209775,90716.0,90714.0,0.19739209]
[1731802408169,0.13209775,90716.0,90715.0,0.06542266]
[1731802408365,0.055077,90732.0,90715.0,0.06542266]
[1731802408366,0.13209775,90718.0,90715.0,0.20772775]
[1731802408571,0.13209775,90719.0,90717.0,0.055086]
[1731802408789,0.13209775,90719.0,90718.0,0.01033566]
[1731802408976,0.16513579,90725.0,90719.0,0.055084]
[1731802408977,0.13209775,90720.0,90719.0,0.055084]
[1731802409178,0.13209775,90720.0,90719.0,0.06541966]
[1731802410072,0.16513579,90724.0,90719.0,0.06541966]
[1731802410273,0.16513579,90724.0,90720.0,0.01033566]
[1731802410471,0.13202308,90721.0,90719.0,0.055084]
[1731802410674,0.13202308,90721.0,90720.0,0.01033368]
[1731802412383,0.13202308,90722.0,90720.0,0.01033368]
[1731802412575,0.13202308,90722.0,90721.0,0.01033368]
[1731802412972,0.13202308,90722.0,90719.0,0.055084]
[1731802412973,0.05773764,90726.0,90719.0,0.055084]
[1731802413176,0.13198044,90721.0,90719.0,0.055084]
[1731802413370,0.13198044,90722.0,90719.0,0.055084]
[1731802414578,0.13198044,90722.0,90720.0,0.055083]
[1731802416079,0.20157424,90723.0,90720.0,0.055083]
[1731802417183,0.20157424,90723.0,90721.0,0.055083]
[1731802418078,0.0695938,90723.0,90722.0,0.01033344]
[1731802423686,0.00165383,90726.0,90725.0,0.055081]
[1731802423982,0.00165383,90726.0,90725.0,0.49580824]
[1731802424186,0.0313,90733.0,90725.0,0.68286689]
[1731802424187,0.13198044,90733.0,90725.0,0.68286689]
[1731802424385,0.00131545,90735.0,90734.0,0.055075]
[1731802425587,0.00131545,90735.0,90734.0,0.06540667]
[1731802425885,0.00131545,90735.0,90734.0,0.06540679]
[1731802427585,0.00131545,90735.0,90734.0,0.17561845]
[1731802444405,0.00149356,90739.0,90734.0,0.53641845]
[1731802444606,0.00149356,90739.0,90738.0,0.055073]
[1731802444899,0.00149356,90739.0,90738.0,0.13494311]
[1731802445596,0.00149356,90739.0,90738.0,0.24515477]
[1731802446508,0.00149356,90739.0,90738.0,0.17561645]
[1731802446509,0.07103188,90739.0,90738.0,0.17561645]
[1731802446697,0.07103188,90739.0,90738.0,0.26045645]
[1731802447805,0.07103188,90739.0,90738.0,0.15024479]
[1731802448194,0.48690388,90739.0,90738.0,0.01033179]
[1731802448500,0.48690388,90739.0,90738.0,0.01033204]
[1731802449909,0.48690388,90739.0,90735.0,0.055075]
[1731802450091,0.48690388,90739.0,90737.0,0.055073]
[1731802450298,0.48690388,90739.0,90738.0,0.0103321]
[1731802451314,0.48690388,90739.0,90738.0,0.0654051]
[1731802451808,0.65203967,90739.0,90738.0,0.0654051]
[1731802452511,0.54047117,90739.0,90738.0,0.0654051]
[1731802452809,0.65200078,90739.0,90738.0,0.0654051]
[1731802453007,0.65199946,90739.0,90738.0,0.0654051]
[1731802453392,0.54047034,90739.0,90738.0,0.0654051]
[1731802454310,0.48690388,90739.0,90738.0,0.0654051]
[1731802454513,0.54047043,90739.0,90738.0,0.0654051]
[1731802456204,0.54047043,90739.0,90738.0,0.0103321]
[1731802456412,0.54047193,90739.0,90738.0,0.0103321]
[1731802456610,0.055074,90737.0,90734.0,0.055075]
[1731802456803,0.06953832,90735.0,90734.0,0.055075]
[1731802457000,0.06953832,90735.0,90734.0,0.06540744]
[1731802457401,0.12461332,90735.0,90734.0,0.055075]
[1731802458114,0.12461332,90735.0,90734.0,0.06540751]
[1731802458302,0.12461332,90735.0,90734.0,0.055075]
[1731802458697,0.25671661,90735.0,90734.0,0.055075]
[1731802459110,0.25671606,90735.0,90734.0,0.055075]
[1731802459414,0.25671817,90735.0,90734.0,0.25259195]
[1731802459605,0.25671817,90735.0,90734.0,0.2629246]
[1731802460399,0.12461332,90735.0,90734.0,0.2629246]
[1731802460706,0.2567002,90735.0,90734.0,0.06540765]
[1731802460903,0.2567002,90735.0,90734.0,0.055075]
[1731802461110,0.2567002,90735.0,90733.0,0.19750266]
[1731802461111,0.055075,90734.0,90733.0,0.19750266]
[1731802461306,0.10864928,90734.0,90726.0,0.19750266]
[1731802461617,0.3608,90727.0,90720.0,0.19750266]
[1731802461806,0.055083,90721.0,90720.0,0.19750266]
[1731802462006,0.055083,90721.0,90720.0,0.25258666]
[1731802462314,0.055083,90721.0,90720.0,0.26292103]
[1731802462509,0.055083,90721.0,90720.0,0.06541837]
[1731802463215,0.3608,90725.0,90724.0,0.055081]
[1731802463419,0.415881,90725.0,90724.0,0.055081]
[1731802464022,0.3608,90725.0,90724.0,0.055081]
[1731802465504,0.41729476,90725.0,90724.0,0.055081]
[1731802467123,0.05649476,90725.0,90724.0,0.055081]
[1731802467317,0.09973832,90726.0,90724.0,0.055081]
[1731802468120,0.15481832,90726.0,90724.0,0.055081]
[1731802468322,0.3608,90725.0,90721.0,0.26307004]
[1731802469211,0.3608,90725.0,90721.0,0.31815304]
[1731802469524,0.3608,90725.0,90721.0,0.26307004]
[1731802469709,0.06953832,90722.0,90721.0,0.26307004]
[1731802470109,0.0607,90722.0,90721.0,0.26307004]
[1731802470616,0.13023832,90722.0,90721.0,0.26307004]
[1731802472520,0.0607,90722.0,90721.0,0.26307004]
[1731802473524,0.0607,90722.0,90715.0,0.0016533]
[1731802473714,0.06953832,90716.0,90715.0,0.0016533]
[1731802475822,0.20147217,90716.0,90715.0,0.0016533]
[1731802476526,0.13193385,90716.0,90715.0,0.0016533]
[1731802476721,0.20147217,90716.0,90715.0,0.0016533]
[1731802476923,0.23802742,90716.0,90715.0,0.0016533]
[1731802477117,0.10609357,90716.0,90715.0,0.0016533]
[1731802477311,0.23802742,90716.0,90715.0,0.0016533]
[1731802477522,0.10609357,90716.0,90715.0,0.0016533]
[1731802477724,0.23802742,90716.0,90715.0,0.0016533]
[1731802478122,0.29425492,90716.0,90715.0,0.0016533]
[1731802479326,0.16232107,90716.0,90715.0,0.0016533]
[1731802479932,0.0562275,90716.0,90715.0,0.0016533]
[1731802480116,0.36136001,90717.0,90706.0,9.425e-05]
[1731802480316,0.3608,90717.0,90716.0,0.055086]
[1731802481931,0.3608,90717.0,90716.0,0.16531952]
[1731802483726,0.05621084,90727.0,90716.0,0.47103352]
[1731802483931,0.10609357,90732.0,90718.0,0.19729639]
[1731802484131,0.10609357,90732.0,90720.0,0.19729639]
[1731802484327,0.10609357,90732.0,90723.0,0.055082]
[1731802484525,0.10609357,90732.0,90724.0,0.0326]
[1731802485030,0.055079,90728.0,90724.0,0.0326]
[1731802486029,0.16051303,90732.0,90724.0,0.0326]
[1731802486332,0.16051303,90732.0,90724.0,0.087681]
[1731802486533,0.055078,90730.0,90724.0,0.087681]
[1731802488845,0.055078,90730.0,90725.0,0.055081]
[1731802489925,0.05441946,90732.0,90724.0,0.22989639]
[1731802490133,0.237927,90733.0,90727.0,0.05508]
[1731802490330,0.293003,90733.0,90727.0,0.05508]
[1731802491029,0.293003,90733.0,90726.0,0.19237639]
[1731802491360,0.34689996,90733.0,90727.0,0.05508]
[1731802492037,0.21506653,90733.0,90727.0,0.05508]
[1731802493144,0.10897296,90733.0,90729.0,0.055078]
[1731802493432,0.05389696,90733.0,90730.0,0.055078]
[1731802493632,0.055074,90737.0,90730.0,0.055078]
[1731802493834,0.18690743,90737.0,90731.0,0.01033245]
[1731802494035,0.18690743,90737.0,90730.0,0.055078]
[1731802494229,0.055075,90735.0,90731.0,0.01033251]
[1731802494429,0.055075,90735.0,90724.0,0.0326]
[1731802494621,0.055075,90735.0,90725.0,0.01033246]
[1731802494828,0.055075,90735.0,90726.0,0.01033246]
[1731802495129,0.055075,90735.0,90727.0,0.01033246]
[1731802495331,0.055075,90735.0,90730.0,0.055077]
[1731802496733,0.06957905,90731.0,90730.0,0.055077]
[1731802497126,0.06957905,90731.0,90730.0,0.06540956]
[1731802497323,0.055078,90730.0,90724.0,0.0326]
[1731802497543,0.06957905,90725.0,90724.0,0.0326]
[1731802497832,0.06957905,90725.0,90724.0,0.04293269]
[1731802498140,0.06957905,90725.0,90724.0,0.15315649]
[1731802498347,0.06957905,90725.0,90724.0,0.1428238]
[1731802500528,0.06957905,90731.0,90730.0,0.055078]
[1731802500730,0.13183343,90740.0,90730.0,0.07991148]
[1731802500934,0.00149356,90739.0,90737.0,0.055073]
[1731802501449,0.06957905,90738.0,90737.0,0.055073]
[1731802501755,0.00149356,90739.0,90737.0,0.055073]
[1731802502042,0.00149356,90739.0,90737.0,0.16528952]
[1731802502432,0.00149356,90739.0,90738.0,0.01033157]
[1731802502634,0.00149356,90739.0,90737.0,0.16528952]
[1731802502928,0.00149356,90739.0,90737.0,0.055073]
[1731802503141,0.00149356,90739.0,90738.0,0.1102068]
[1731802504043,0.00149356,90739.0,90738.0,0.12053755]
[1731802504439,0.00190818,90743.0,90738.0,0.38357634]
[1731802504642,0.00190818,90743.0,90742.0,0.05507]
[1731802504951,0.00190818,90743.0,90742.0,0.06540075]
[1731802505330,0.0013686,90747.0,90742.0,0.938329]
[1731802505550,0.0013686,90747.0,90746.0,0.055068]
[1731802505846,0.0013686,90747.0,90746.0,0.06539875]
[1731802506243,0.0013686,90747.0,90746.0,0.17559583]
[1731802506640,0.0013686,90747.0,90746.0,0.20779583]
[1731802508140,0.0017877,90754.0,90746.0,0.15272783]
[1731802508344,0.0017877,90754.0,90750.0,0.055066]
[1731802508544,0.0017877,90754.0,90750.0,0.06539675]
[1731802509147,0.0017877,90754.0,90750.0,0.17558898]
[1731802509549,0.0017877,90754.0,90750.0,0.50614898]
[1731802510842,0.0017877,90754.0,90750.0,0.76918777]
[1731802511244,0.0017877,90754.0,90750.0,0.50614898]
[1731802513060,0.0017877,90754.0,90750.0,0.76918777]
[1731802513245,0.0017877,90754.0,90750.0,0.50614898]
[1731802513559,0.0017877,90754.0,90750.0,0.76918777]
[1731802513747,0.0001344,90754.0,90750.0,0.50614898]
[1731802514550,0.0001344,90754.0,90750.0,0.59094898]
[1731802516250,0.0001344,90754.0,90750.0,0.49581823]
[1731802516455,0.0001344,90754.0,90750.0,0.25005823]
[1731802516954,0.0001344,90754.0,90750.0,0.16525823]
[1731802517258,0.0001344,90754.0,90750.0,0.25005823]
[1731802517462,0.033,90753.0,90750.0,0.25005823]
[1731802518050,0.033,90753.0,90750.0,0.26038812]
[1731802521966,0.033,90753.0,90750.0,0.20532212]
[1731802526063,0.055064,90752.0,90750.0,0.20532212]
[1731802526255,0.033,90753.0,90750.0,0.20532212]
[1731802528890,0.033,90753.0,90750.0,0.26038812]
[1731802534774,0.0022927,90776.0,90751.0,0.33056]
[1731802535072,0.00056001,90765.0,90764.0,0.055057]
[1731802535266,0.0022927,90776.0,90767.0,0.055055]
[1731802535467,0.0022927,90776.0,90767.0,0.06538489]
[1731802535664,0.10541729,90769.0,90767.0,0.39590489]
[1731802535870,0.0022927,90776.0,90770.0,0.055053]
[1731802536065,0.0022927,90776.0,90770.0,0.49572734]
[1731802536678,0.0022927,90776.0,90770.0,0.60589832]
[1731802537071,0.0022927,90776.0,90771.0,0.01032989]
[1731802537678,0.0022927,90776.0,90771.0,0.12049784]
[1731802538983,0.0022927,90776.0,90771.0,0.22638204]
[1731802540771,0.0022927,90776.0,90771.0,0.48876286]
[1731802540970,0.0022927,90776.0,90771.0,0.54319142]
[1731802541287,0.0022927,90776.0,90771.0,0.87370949]
[1731802541472,0.0022927,90776.0,90775.0,0.05505]
[1731802541785,0.0022927,90776.0,90775.0,0.15013989]
[1731802542083,0.0022927,90776.0,90775.0,0.17554177]
[1731802542283,0.0022927,90776.0,90775.0,0.26030177]
[1731802544077,0.0022927,90776.0,90775.0,0.12049177]
[1731802544281,0.0022927,90776.0,90775.0,0.20525177]
[1731802544470,0.0022927,90776.0,90775.0,0.19492188]
[1731802545284,0.0022927,90776.0,90775.0,0.20524888]
[1731802551283,0.0022927,90776.0,90775.0,0.46755587]
[1731802551481,0.0022927,90776.0,90775.0,0.20524888]
[1731802551679,0.0022927,90776.0,90775.0,0.46755587]
[1731802551880,0.0323,90794.0,90775.0,0.20524888]
[1731802552089,0.0323,90794.0,90783.0,0.5217302]
[1731802552490,0.0323,90794.0,90783.0,0.52705556]
[1731802552698,0.0323,90794.0,90787.0,0.055043]
[1731802552895,0.0323,90794.0,90787.0,0.15545536]
[1731802553193,9.894e-05,90798.0,90787.0,0.48589536]
[1731802553380,9.894e-05,90798.0,90787.0,0.59604268]
[1731802554990,9.894e-05,90798.0,90787.0,0.5960529]
[1731802557294,9.894e-05,90798.0,90787.0,0.85806628]
[1731802557599,9.894e-05,90798.0,90787.0,0.5960529]
[1731802558292,9.894e-05,90798.0,90787.0,0.59600382]
[1731802560188,9.894e-05,90798.0,90787.0,0.92397985]
[1731802560492,9.894e-05,90798.0,90787.0,1.26350108]
[1731802560794,9.894e-05,90798.0,90787.0,0.93552505]
[1731802561296,9.894e-05,90798.0,90787.0,0.93551255]
[1731802562192,9.894e-05,90798.0,90787.0,0.6049871]
[1731802562499,9.894e-05,90798.0,90795.0,0.055038]
[1731802562768,9.894e-05,90798.0,90795.0,0.5320492]
[1731802562907,9.894e-05,90798.0,90795.0,0.5373232]
[1731802563116,9.894e-05,90798.0,90795.0,0.64747052]
[1731802563715,9.894e-05,90798.0,90795.0,0.62634632]
[1731802564532,9.894e-05,90798.0,90795.0,0.99454236]
[1731802564732,9.894e-05,90798.0,90795.0,0.73222563]
[1731802566832,9.894e-05,90798.0,90795.0,0.69579652]
[1731802567134,9.894e-05,90798.0,90795.0,0.95818142]
[1731802567323,9.894e-05,90798.0,90795.0,0.62630143]
[1731802568032,9.894e-05,90798.0,90795.0,0.48654343]
[1731802568330,0.36380537,90796.0,90795.0,0.16046343]
[1731802569529,0.36380537,90796.0,90795.0,0.00526911]
[1731802569837,0.41964697,90796.0,90790.0,0.08472]
[1731802570024,0.12449609,90791.0,90790.0,0.08472]
[1731802570640,0.12449609,90791.0,90786.0,0.055044]
[1731802570933,0.12449609,90791.0,90780.0,0.0051]
[1731802570934,0.055046,90782.0,90780.0,0.0051]
[1731802571229,0.3608,90788.0,90781.0,0.1948661]
[1731802571230,0.06945509,90786.0,90781.0,0.1948661]
[1731802571537,0.055043,90787.0,90784.0,0.055044]
[1731802571926,0.06945509,90786.0,90783.0,0.08472]
[1731802572122,0.055045,90784.0,90783.0,0.08472]
[1731802572435,0.055045,90784.0,90776.0,0.0051]
[1731802572626,0.0318,90783.0,90782.0,0.055046]
[1731802572831,0.0649,90783.0,90782.0,0.055046]
[1731802573538,0.0649,90783.0,90782.0,0.16519938]
[1731802575235,0.0649,90783.0,90782.0,0.24991938]
[1731802575739,0.11920513,90783.0,90782.0,0.24991938]
[1731802576940,0.11920513,90783.0,90782.0,0.16519938]
[1731802578046,0.05430513,90783.0,90782.0,0.16519938]
[1731802578248,0.0302,90784.0,90782.0,0.17552636]
[1731802578436,0.085245,90784.0,90782.0,0.16519938]
[1731802578638,0.085245,90784.0,90783.0,0.01032705]
[1731802580253,0.085245,90784.0,90782.0,0.055046]
[1731802581645,0.085245,90784.0,90783.0,0.0052264]
[1731802583751,0.055047,90780.0,90779.0,0.08472]
[1731802583946,0.055047,90780.0,90779.0,0.10026383]
[1731802584142,0.055047,90780.0,90779.0,0.10026381]
[1731802585248,0.055047,90780.0,90779.0,0.09504743]
[1731802585447,0.055047,90780.0,90779.0,0.1002536]
[1731802585953,0.055047,90780.0,90779.0,0.09504743]
[1731802586149,0.055047,90780.0,90779.0,0.08472]
[1731802588052,0.0302,90784.0,90772.0,0.00011052]
[1731802588360,0.0302,90784.0,90773.0,0.19491702]
[1731802588361,0.41585,90776.0,90773.0,0.19491702]
[1731802588559,0.41585,90776.0,90773.0,0.20524457]
[1731802588744,0.05505,90775.0,90774.0,0.06537855]
[1731802589451,0.05505,90775.0,90774.0,0.17554164]
[1731802589947,0.05505,90775.0,90774.0,0.12572938]
[1731802591471,0.05505,90775.0,90774.0,0.01556642]
[1731802592149,0.05505,90775.0,90774.0,0.07061742]
[1731802594960,0.3608,90776.0,90774.0,0.01556642]
[1731802595261,0.3608,90776.0,90775.0,0.07061642]
[1731802596044,0.3608,90776.0,90775.0,0.02417608]
[1731802598456,0.3608,90776.0,90775.0,0.0244096]
[1731802603640,0.3608,90776.0,90775.0,0.02433881]
[1731802604826,0.41585,90776.0,90775.0,0.01401113]
[1731802605439,0.41585,90776.0,90775.0,0.00538832]
[1731802606423,0.055052,90773.0,90772.0,0.00011052]
[1731802606637,0.48536313,90773.0,90772.0,0.00011052]
[1731802612838,0.415852,90773.0,90772.0,0.00011052]
[1731802613032,0.055052,90773.0,90772.0,0.05516252]
[1731802613443,0.055052,90773.0,90772.0,0.06549098]
[1731802616537,0.055052,90773.0,90772.0,0.07410944]
[1731802617929,0.3608,90776.0,90772.0,0.01905744]
[1731802618132,0.3608,90776.0,90775.0,0.05505]
[1731802618343,0.41585,90776.0,90775.0,0.07399692]
[1731802618551,0.41585,90776.0,90775.0,0.07940649]
[1731802619249,0.3108,90776.0,90775.0,0.07940649]
[1731802619452,0.3108,90776.0,90775.0,0.18956837]
[1731802620546,0.0545188,90782.0,90775.0,0.18956837]
[1731802620845,0.055048,90779.0,90776.0,0.02435649]
[1731802621150,0.055048,90779.0,90777.0,0.01573803]
[1731802621339,0.055048,90779.0,90778.0,0.01032846]
[1731802621642,0.055048,90779.0,90778.0,0.01565951]
[1731802622948,0.055048,90779.0,90778.0,0.00533105]
[1731802623150,0.085848,90779.0,90778.0,0.01565848]
[1731802623349,0.085848,90779.0,90778.0,0.00533105]
[1731802623536,0.085848,90779.0,90778.0,0.01060932]
[1731802623739,0.085848,90779.0,90778.0,0.00527827]
[1731802624443,0.055052,90773.0,90772.0,0.00011052]
[1731802624742,0.415852,90773.0,90772.0,0.00011052]
[1731802626464,0.055048,90779.0,90772.0,0.11027604]
[1731802626650,0.06951113,90783.0,90773.0,0.04352802]
[1731802626951,0.06951113,90783.0,90781.0,0.055046]
[1731802627147,0.12455613,90784.0,90782.0,0.055046]
[1731802627542,0.41576507,90786.0,90774.0,0.06951113]
[1731802627848,0.41576507,90786.0,90784.0,0.055045]
[1731802628049,0.41520506,90786.0,90784.0,0.055045]
[1731802628647,0.05440506,90786.0,90784.0,0.055045]
[1731802628849,0.00165264,90792.0,90791.0,0.055041]
[1731802629044,0.00165264,90792.0,90791.0,0.06536722]
[1731802631158,0.00165264,90792.0,90791.0,0.17550968]
[1731802631363,0.00300537,90796.0,90795.0,0.055038]
[1731802631550,9.894e-05,90798.0,90795.0,0.63375365]
[1731802631745,9.894e-05,90798.0,90797.0,0.055037]
[1731802632043,0.05250809,90800.0,90799.0,0.055036]
[1731802632246,0.0036842,90804.0,90803.0,0.055033]
[1731802632548,0.0036842,90804.0,90803.0,0.15007922]
[1731802633056,0.0036842,90804.0,90803.0,0.26021441]
[1731802633750,0.0036842,90804.0,90803.0,0.15007922]
[1731802636449,0.0036842,90804.0,90803.0,0.15534312]
[1731802636950,0.0036842,90804.0,90803.0,0.1450169]
[1731802637462,0.0036842,90804.0,90803.0,0.0899839]
[1731802638158,0.0036842,90804.0,90803.0,0.08472]
[1731802638348,0.0036842,90804.0,90803.0,0.08998904]
[1731802638658,0.0036842,90804.0,90803.0,0.08472]
[1731802638856,0.0036842,90804.0,90803.0,0.10031305]
[1731802640855,0.0036842,90804.0,90803.0,0.21044096]
[1731802641658,0.0036842,90804.0,90803.0,0.21048549]
[1731802644870,0.0036842,90804.0,90803.0,0.26584919]
[1731802645555,0.0036842,90804.0,90803.0,0.26587492]
[1731802647359,0.0036842,90804.0,90803.0,0.2744548]
[1731802648362,0.0036842,90804.0,90803.0,0.26053611]
[1731802648860,0.0036842,90804.0,90803.0,0.26587063]
[1731802649269,0.0036842,90804.0,90803.0,0.26053611]
[1731802649462,0.0036842,90804.0,90803.0,0.26584457]
[1731802650276,0.0036842,90804.0,90803.0,0.32087757]
[1731802652063,0.0036842,90804.0,90803.0,0.42674009]
[1731802652265,0.00403191,90816.0,90807.0,0.055031]
[1731802652472,0.00403191,90816.0,90807.0,0.4261555]
[1731802652673,0.00403191,90816.0,90807.0,0.43146396]
[1731802652970,0.00403191,90816.0,90807.0,0.54159187]
[1731802655874,0.00403191,90816.0,90808.0,9.977e-05]
[1731802656074,0.00403191,90816.0,90811.0,0.055029]
[1731802656279,0.00403191,90816.0,90811.0,0.07066196]
[1731802656469,0.00403191,90816.0,90811.0,0.18078199]
[1731802658275,0.00403191,90816.0,90811.0,0.26550199]
[1731802658682,0.00403191,90816.0,90811.0,0.26547505]
[1731802660177,0.00403191,90816.0,90811.0,0.52810248]
[1731802660564,0.00403191,90816.0,90811.0,0.26547505]
[1731802660876,0.07316282,90812.0,90811.0,0.32267959]
[1731802661176,0.12819082,90812.0,90811.0,0.10558677]
[1731802661381,0.12819082,90812.0,90811.0,0.10030525]
[1731802661576,0.12819082,90812.0,90811.0,0.01558525]
[1731802662167,0.05874469,90812.0,90811.0,0.01558525]
[1731802662477,0.05874469,90812.0,90811.0,0.01032427]
[1731802662682,0.00371669,90812.0,90811.0,0.06535327]
[1731802663681,0.13565327,90812.0,90811.0,0.06535327]
[1731802664069,0.00371669,90812.0,90811.0,0.06535327]
[1731802664477,0.13565327,90812.0,90811.0,0.06535327]
[1731802665177,0.00371669,90812.0,90811.0,0.06535327]
[1731802667479,0.00371669,90812.0,90811.0,0.37242502]
[1731802667480,0.13565327,90812.0,90811.0,0.37242502]
[1731802667683,0.00371669,90812.0,90811.0,0.17547148]
[1731802668782,0.00371669,90812.0,90811.0,0.53627148]
[1731802669285,0.00403191,90816.0,90815.0,0.055026]
[1731802669485,0.00403191,90816.0,90815.0,0.07057464]
[1731802669691,0.00403191,90816.0,90815.0,0.0705748]
[1731802669867,0.00403191,90816.0,90815.0,0.18069301]
[1731802670074,1e-08,90816.0,90815.0,0.28652655]
[1731802670588,1e-08,90816.0,90815.0,0.54392945]
[1731802671276,1e-08,90816.0,90815.0,0.36602202]
[1731802671884,1e-08,90816.0,90815.0,0.422065]
[1731802672273,1e-08,90816.0,90815.0,0.68454992]
[1731802672483,1e-08,90816.0,90815.0,0.422065]
[1731802672979,1e-08,90816.0,90815.0,0.68455185]
[1731802674594,1e-08,90816.0,90815.0,0.422065]
[1731802675879,1e-08,90816.0,90815.0,0.26120546]
[1731802676081,1e-08,90816.0,90815.0,0.31729245]
[1731802676384,1e-08,90816.0,90815.0,0.20512248]
[1731802677592,0.36080001,90816.0,90815.0,0.20512248]
[1731802677979,0.36080001,90816.0,90815.0,0.12044248]
[1731802678181,0.36080001,90816.0,90815.0,0.20512248]
[1731802678380,0.36080001,90816.0,90815.0,0.19479821]
[1731802679392,0.36080001,90816.0,90815.0,0.11011821]
[1731802679583,0.36080001,90816.0,90809.0,0.28152997]
[1731802679784,0.13186813,90814.0,90809.0,0.28152997]
[1731802679987,0.13186813,90814.0,90811.0,0.11011336]
[1731802680194,0.13186813,90813.0,90809.0,0.3359976]
[1731802680393,0.13186813,90812.0,90810.0,0.11011336]
[1731802680693,0.13186813,90813.0,90810.0,0.11011336]
[1731802680903,0.13186813,90814.0,90810.0,0.11011336]
[1731802681085,0.36080001,90816.0,90810.0,0.30696333]
[1731802681086,0.13186813,90813.0,90810.0,0.30696333]
[1731802681398,0.13186813,90813.0,90810.0,0.11011336]
[1731802681585,0.36080001,90816.0,90810.0,0.30696333]
[1731802681586,0.13186813,90814.0,90810.0,0.30696333]
[1731802681996,0.36080001,90816.0,90811.0,0.01032348]
[1731802681997,0.13186813,90813.0,90811.0,0.01032348]
[1731802682192,0.13186813,90814.0,90810.0,0.30696333]
[1731802682392,0.13186813,90814.0,90809.0,0.13914763]
[1731802682393,0.13186813,90814.0,90811.0,0.01032341]
[1731802682596,0.13186813,90814.0,90812.0,0.01561818]
[1731802682903,0.13186813,90815.0,90813.0,0.01561818]
[1731802683096,0.49266814,90816.0,90815.0,0.055026]
[1731802683295,0.36080001,90816.0,90815.0,0.07064418]
[1731802683595,0.36080001,90816.0,90815.0,0.18075754]
[1731802685493,1e-08,90816.0,90815.0,0.54155754]
[1731802685695,0.00326963,90820.0,90816.0,0.055025]
[1731802685890,0.00326963,90820.0,90815.0,0.48653154]
[1731802685891,0.00326963,90820.0,90817.0,0.19697163]
[1731802686200,0.00326963,90820.0,90818.0,0.01561818]
[1731802686404,0.13513776,90820.0,90819.0,0.01561818]
[1731802686787,0.13513776,90820.0,90819.0,0.10029818]
[1731802686992,0.00326963,90820.0,90819.0,0.10029818]
[1731802688793,0.00326963,90820.0,90819.0,0.08997477]
[1731802689001,0.00326963,90820.0,90819.0,0.08993398]
[1731802691102,0.00326963,90820.0,90819.0,0.10025702]
[1731802691406,0.00326963,90820.0,90819.0,0.10022191]
[1731802692220,0.00326963,90820.0,90819.0,0.08989887]
[1731802693010,0.00326963,90820.0,90819.0,0.10022164]
[1731802698013,0.00326963,90820.0,90819.0,0.01032277]
[1731802698200,0.16809747,90820.0,90819.0,0.01564822]
[1731802698518,0.05678935,90820.0,90819.0,0.00532545]
[1731802699415,0.055024,90819.0,90815.0,0.08468]
[1731802699604,0.16496766,90817.0,90816.0,0.00522954]
[1731802700014,0.055025,90818.0,90816.0,0.00522954]
[1731802700213,0.055025,90818.0,90817.0,0.00522954]
[1731802700418,0.10854699,90818.0,90817.0,0.00522954]
[1731802700959,0.10854699,90818.0,90817.0,0.01054664]
[1731802702644,0.00326963,90820.0,90817.0,0.01054664]
[1731802702645,0.00326963,90820.0,90818.0,0.055024]
[1731802702841,0.00326963,90820.0,90819.0,0.01032357]
[1731802703352,0.16825887,90820.0,90819.0,0.01032357]
[1731802703851,0.16825887,90820.0,90819.0,0.12043208]
[1731802704038,0.00326963,90820.0,90819.0,0.12043208]
[1731802705448,0.00326963,90820.0,90819.0,0.31740371]
[1731802706139,0.00326963,90820.0,90819.0,0.12043208]
[1731802706715,0.00326963,90820.0,90819.0,0.17658755]
[1731802707124,0.00326963,90820.0,90819.0,0.51243816]
[1731802707325,0.13526457,90820.0,90819.0,0.24602704]
[1731802707514,0.36136001,90824.0,90823.0,0.055021]
[1731802707714,0.3608,90824.0,90823.0,0.06534457]
[1731802708234,0.3608,90824.0,90823.0,0.17545308]
[1731802708719,0.00406653,90825.0,90823.0,0.37269338]
[1731802708939,0.00406653,90825.0,90824.0,0.16444306]
[1731802709628,0.00406653,90825.0,90824.0,0.27454672]
[1731802712319,0.07350602,90825.0,90824.0,0.20510723]
[1731802712524,0.07350602,90825.0,90824.0,0.11010366]
[1731802712727,0.07350602,90825.0,90824.0,0.08996906]
[1731802712928,0.00406653,90825.0,90824.0,0.08996906]
[1731802714531,0.00406653,90825.0,90824.0,0.08468]
[1731802714738,0.00406653,90825.0,90824.0,0.10027409]
[1731802715736,0.12852602,90825.0,90824.0,0.0052717]
[1731802716442,0.12852602,90825.0,90824.0,0.01559441]
[1731802717131,0.12852602,90825.0,90824.0,0.0052717]
[1731802717523,0.12852602,90825.0,90824.0,0.01559449]
[1731802717742,0.12852602,90825.0,90824.0,0.0052717]
[1731802721950,0.12852602,90825.0,90824.0,0.0052318]
[1731802724059,0.18204565,90825.0,90824.0,0.0052318]
[1731802725340,0.055023,90821.0,90820.0,0.055023]
[1731802725640,0.415823,90821.0,90820.0,0.0602724]
[1731802725840,0.52573959,90821.0,90820.0,0.07059561]
[1731802726141,0.16493959,90822.0,90820.0,0.18069806]
[1731802726445,0.16493959,90824.0,90821.0,0.01557261]
[1731802726629,0.16493885,90823.0,90822.0,0.055022]
[1731802726831,0.05908653,90825.0,90824.0,0.055021]
[1731802727045,0.05908653,90825.0,90822.0,0.1256793]
[1731802727046,0.055021,90823.0,90822.0,0.1256793]
[1731802727247,0.055021,90823.0,90822.0,0.00528847]
[1731802727446,0.21995985,90823.0,90822.0,0.01561133]
[1731802727628,0.21995985,90823.0,90822.0,0.12571802]
[1731802727831,0.21995985,90823.0,90822.0,0.12042955]
[1731802728034,0.16493885,90823.0,90822.0,0.12042955]
[1731802728247,0.16493885,90824.0,90822.0,0.12042955]
[1731802728428,0.16493885,90824.0,90823.0,0.06534386]
[1731802728932,0.16493885,90824.0,90823.0,0.17544812]
[1731802729132,0.00406653,90825.0,90823.0,0.12042712]
[1731802729433,0.16900719,90825.0,90824.0,0.06534386]
[1731802729738,0.00406653,90825.0,90824.0,0.06534386]
[1731802729934,0.00406653,90825.0,90824.0,0.07060548]
[1731802730540,0.00406653,90825.0,90824.0,0.18070853]
[1731802731455,0.00406653,90825.0,90824.0,0.37792972]
[1731802731747,0.00406653,90825.0,90824.0,0.18070853]
[1731802732047,0.00406653,90825.0,90824.0,0.23593219]
[1731802732744,0.00406653,90825.0,90824.0,0.23596028]
[1731802733646,0.00470979,90829.0,90828.0,0.055018]
[1731802733843,0.07414928,90829.0,90828.0,0.06030771]
[1731802734055,0.07414928,90829.0,90828.0,0.07063057]
[1731802734237,0.07414928,90829.0,90828.0,0.18073302]